bitfinex-derivatives/quotes_SOLF0:USTF0_20250909
["timestamp","ask_amount","ask_price","bid_price","bid_amount"]
[1757387578815,0.03575139,212.46,212.41,0.03323795]
[1757387579014,7.59,212.45,212.41,0.03323795]
[1757387579214,0.03575139,212.46,212.41,0.03323795]
[1757387579410,7.59,212.45,212.41,0.03323795]
[1757387579712,7.59,212.45,212.42,3.05]
[1757387580106,7.59,212.45,212.41,0.03323795]
[1757387580308,0.03575139,212.46,212.41,0.03323795]
[1757387580709,1.71728493,212.45,212.41,0.03323795]
[1757387581013,7.59,212.44,212.41,0.03323795]
[1757387581214,1.71728493,212.45,212.41,0.03323795]
[1757387581415,7.59,212.44,212.41,0.03323795]
[1757387581710,7.59,212.45,212.41,0.03323795]
[1757387582009,0.03575139,212.46,212.41,0.03323795]
[1757387582409,7.59,212.45,212.41,3.08323795]
[1757387582815,0.03575139,212.46,212.41,3.08323795]
[1757387583209,7.59,212.45,212.41,3.08323795]
[1757387583405,7.59,212.45,212.42,7.46247034]
[1757387583703,7.59,212.45,212.41,0.03323795]
[1757387583905,0.03575139,212.46,212.43,3.05]
[1757387584109,0.03575139,212.46,212.42,1.71728493]
[1757387584416,7.62575139,212.46,212.43,7.46154752]
[1757387584715,7.62575139,212.46,212.43,3.05]
[1757387585106,7.90274249,212.54,212.46,3.01]
[1757387585416,7.59,212.6,212.48,3.01]
[1757387585612,7.59,212.6,212.55,1.71728493]
[1757387585811,7.59,212.61,212.55,1.71728493]
[1757387586012,7.59,212.58,212.52,1.71728493]
[1757387586213,7.59,212.58,212.53,4.40326949]
[1757387586414,1.71728493,212.59,212.53,0.03071032]
[1757387586615,9.30728493,212.59,212.53,0.03071032]
[1757387587214,7.59,212.59,212.54,1.71728493]
[1757387587418,7.59,212.6,212.54,1.71728493]
[1757387588609,7.59,212.6,212.56,1.71728493]
[1757387588817,7.59,212.61,212.56,1.71728493]
[1757387589018,9.30728493,212.61,212.54,4.72728493]
[1757387589515,7.59,212.61,212.54,1.71728493]
[1757387589717,7.59,212.59,212.53,0.03071032]
[1757387590511,7.59,212.59,212.54,1.71728493]
[1757387590709,1.71728493,212.6,212.54,1.71728493]
[1757387591115,7.59,212.59,212.54,1.71728493]
[1757387592320,7.59,212.57,212.53,0.03071032]
[1757387593624,1.71728493,212.56,212.53,0.03071032]
[1757387593820,7.29,212.55,212.53,0.03071032]
[1757387594015,1.71728493,212.56,212.53,0.03071032]
[1757387594322,7.29,212.55,212.53,0.03071032]
[1757387594718,1.71728493,212.56,212.53,0.03071032]
[1757387594919,7.29,212.55,212.53,0.03071032]
[1757387595318,1.71728493,212.56,212.53,0.03071032]
[1757387595619,7.29,212.55,212.53,0.03071032]
[1757387595825,1.71728493,212.56,212.53,0.03071032]
[1757387596015,7.29,212.55,212.53,0.03071032]
[1757387596217,1.71728493,212.56,212.53,0.03071032]
[1757387596415,7.29,212.55,212.53,0.03071032]
[1757387596821,7.29,212.54,212.53,0.03071032]
[1757387602219,0.03527625,212.56,212.53,3.05071032]
[1757387602618,0.03527625,212.56,212.54,3.02]
[1757387602819,7.32527625,212.56,212.53,0.03071032]
[1757387603023,7.29,212.55,212.53,0.03071032]
[1757387603223,0.03527625,212.56,212.53,0.03071032]
[1757387603522,7.29,212.55,212.53,0.03071032]
[1757387606929,0.03527625,212.56,212.53,0.03071032]
[1757387607121,7.29,212.55,212.53,0.03071032]
[1757387607624,0.03527625,212.56,212.53,0.03071032]
[1757387607828,7.29,212.55,212.53,0.03071032]
[1757387609122,0.03527625,212.56,212.53,0.03071032]
[1757387609519,7.29,212.55,212.53,0.03071032]
[1757387609731,0.03527625,212.56,212.53,0.03071032]
[1757387609931,7.29,212.55,212.53,0.03071032]
[1757387610621,0.03527625,212.56,212.53,0.03071032]
[1757387611020,7.29,212.55,212.53,0.03071032]
[1757387612028,0.03527625,212.56,212.53,0.03071032]
[1757387612229,7.29,212.55,212.53,0.03071032]
[1757387612422,0.03527625,212.56,212.53,0.03071032]
[1757387613130,7.29,212.55,212.53,0.03071032]
[1757387614129,0.03527625,212.56,212.53,0.03071032]
[1757387614624,7.29,212.55,212.53,0.03071032]
[1757387614823,159.97106075,212.55,212.53,0.03071032]
[1757387615321,7.29,212.54,212.53,0.03071032]
[1757387618630,10.45106075,212.54,212.41,5.73106075]
[1757387618931,7.29,212.5,212.41,3.05]
[1757387619232,7.29,212.5,212.37,2.68106075]
[1757387619432,7.29,212.47,212.38,4.35245722]
[1757387619632,7.29,212.47,212.37,3.05]
[1757387625538,7.85,212.51,212.43,2.68106075]
[1757387625736,7.85,212.51,212.44,3.06]
[1757387636340,150.0,212.54,212.44,3.06]
[1757387636548,150.0,212.54,212.47,3.06]
[1757387638843,7.85,212.53,212.47,3.06]
[1757387641357,7.85,212.53,212.43,2.68106075]
[1757387642158,7.85,212.53,212.42,3.06]
[1757387642354,7.85,212.51,212.43,4.35602938]
[1757387642555,7.85,212.51,212.42,3.06]
[1757387642755,7.85,212.51,212.43,4.35593174]
[1757387642961,7.85,212.51,212.42,3.06]
[1757387643260,7.85,212.51,212.43,4.35590453]
[1757387643455,7.85,212.51,212.42,3.06]
[1757387643657,7.85,212.51,212.43,4.35611261]
[1757387643863,7.85,212.51,212.42,3.06]
[1757387644163,7.85,212.51,212.43,4.35607553]
[1757387644363,7.85,212.51,212.42,3.06]
[1757387644564,7.85,212.51,212.43,4.35630478]
[1757387644763,7.85,212.51,212.42,3.06]
[1757387644959,7.85,212.51,212.43,4.35628928]
[1757387645163,7.85,212.51,212.42,3.06]
[1757387645466,7.85,212.49,212.4,2.68106075]
[1757387645665,7.85,212.49,212.39,3.06]
[1757387645666,10.53106075,212.49,212.39,3.06]
[1757387645867,10.53106075,212.49,212.4,4.35793562]
[1757387646068,10.53106075,212.49,212.39,3.06]
[1757387646368,10.53106075,212.49,212.4,4.35768001]
[1757387646562,10.53106075,212.49,212.39,3.06]
[1757387646871,10.53106075,212.49,212.4,4.35772235]
[1757387647062,10.53106075,212.49,212.39,3.06]
[1757387647264,10.53106075,212.49,212.4,4.35790153]
[1757387647460,7.85,212.49,212.41,4.35797086]
[1757387647671,7.85,212.53,212.44,3.06]
[1757387647865,7.85,212.53,212.45,4.35491576]
[1757387648169,7.85,212.53,212.46,4.35491576]
[1757387648370,7.85,212.53,212.44,3.06]
[1757387648569,7.85,212.53,212.45,4.35376691]
[1757387648871,7.85,212.53,212.44,3.06]
[1757387649170,7.85,212.53,212.45,4.35487117]
[1757387649370,7.85,212.53,212.44,3.06]
[1757387649669,7.85,212.53,212.45,4.35528656]
[1757387649869,7.85,212.53,212.44,3.06]
[1757387650170,7.85,212.53,212.45,4.35569711]
[1757387650364,7.85,212.53,212.44,3.06]
[1757387650565,7.85,212.53,212.45,4.3563603]
[1757387650871,2.68106075,212.51,212.41,3.06]
[1757387651072,7.85,212.5,212.42,4.35747645]
[1757387651276,7.85,212.5,212.43,4.35747645]
[1757387651468,7.85,212.5,212.41,3.06]
[1757387651673,7.85,212.5,212.42,4.35841303]
[1757387651871,7.85,212.5,212.43,4.35841303]
[1757387652067,7.85,212.5,212.41,3.06]
[1757387652266,7.85,212.5,212.42,4.35904868]
[1757387652467,7.85,212.5,212.43,4.35904868]
[1757387652668,7.85,212.5,212.41,3.06]
[1757387652968,7.85,212.5,212.42,4.35907977]
[1757387653162,7.85,212.5,212.43,4.35907977]
[1757387653468,7.85,212.5,212.41,3.06]
[1757387653673,7.85,212.5,212.43,3.04]
[1757387653870,7.85,212.5,212.44,4.3599256]
[1757387654069,7.85,212.5,212.43,3.04]
[1757387654271,7.85,212.5,212.44,4.35964435]
[1757387654470,7.85,212.5,212.43,3.04]
[1757387654670,7.85,212.5,212.44,4.35987357]
[1757387654967,7.85,212.5,212.4,2.68106075]
[1757387655168,7.85,212.5,212.41,4.36020509]
[1757387655477,7.85,212.5,212.42,4.36020509]
[1757387655776,7.85,212.5,212.43,4.36020509]
[1757387655973,7.85,212.5,212.4,2.68106075]
[1757387656173,7.85,212.5,212.41,4.35757603]
[1757387656372,7.85,212.5,212.42,4.35757603]
[1757387656571,7.85,212.5,212.43,4.35757603]
[1757387656773,7.85,212.5,212.4,2.68106075]
[1757387656973,7.85,212.5,212.41,4.35757144]
[1757387657172,7.85,212.5,212.42,4.35757144]
[1757387657372,7.85,212.5,212.43,4.35757144]
[1757387657573,7.85,212.5,212.4,2.68106075]
[1757387657774,7.85,212.5,212.41,4.358101]
[1757387657969,7.85,212.5,212.42,4.358101]
[1757387658171,7.85,212.5,212.43,4.358101]
[1757387658367,157.85,212.5,212.39,3.04]
[1757387658572,157.85,212.5,212.4,4.35905569]
[1757387658875,2.68106075,212.48,212.41,4.35905569]
[1757387659174,7.42,212.47,212.36,3.04]
[1757387659378,7.42,212.47,212.37,8.22352979]
[1757387659579,7.42,212.47,212.38,8.22352979]
[1757387659775,7.42,212.47,212.39,4.36047338]
[1757387659970,7.42,212.47,212.4,4.36047338]
[1757387660166,7.42,212.47,212.41,4.36047338]
[1757387660371,150.0,212.5,212.42,4.3604094]
[1757387660572,150.0,212.5,212.44,3.04]
[1757387662173,150.0,212.5,212.45,4.35951599]
[1757387662373,157.42,212.5,212.45,4.75627032]
[1757387663368,157.42,212.5,212.46,4.35947097]
[1757387663572,157.42,212.5,212.46,3.04]
[1757387663573,7.42,212.5,212.46,3.04]
[1757387663773,1.71627032,212.52,212.45,4.75627032]
[1757387663973,1.71627032,212.52,212.46,4.35929019]
[1757387664175,1.71627032,212.52,212.45,4.75627032]
[1757387664375,1.71627032,212.52,212.46,4.35915309]
[1757387664573,1.71627032,212.52,212.45,4.75627032]
[1757387664776,1.71627032,212.52,212.46,4.35913805]
[1757387664979,1.71627032,212.52,212.45,4.75627032]
[1757387665179,1.71627032,212.52,212.46,4.35783204]
[1757387665381,1.71627032,212.52,212.45,4.75627032]
[1757387665681,1.71627032,212.52,212.46,4.35790012]
[1757387665876,1.71627032,212.52,212.45,4.75627032]
[1757387666077,1.71627032,212.53,212.46,4.35654028]
[1757387666277,1.71627032,212.53,212.45,4.75627032]
[1757387666479,9.13627032,212.54,212.47,1.71627032]
[1757387666681,9.13627032,212.54,212.48,4.35715458]
[1757387666880,7.42,212.54,212.47,1.71627032]
[1757387667081,7.42,212.54,212.48,4.35557421]
[1757387667285,9.13627032,212.55,212.49,4.35557421]
[1757387667582,9.13627032,212.55,212.47,4.75627032]
[1757387667880,9.13627032,212.55,212.48,4.35570782]
[1757387668082,9.13627032,212.55,212.47,4.75627032]
[1757387668281,9.13627032,212.55,212.48,4.35677078]
[1757387668477,9.13627032,212.55,212.47,4.75627032]
[1757387668679,9.13627032,212.55,212.48,4.35726521]
[1757387668976,9.13627032,212.55,212.47,4.75627032]
[1757387669177,9.13627032,212.55,212.48,4.35725277]
[1757387669377,9.13627032,212.55,212.47,4.75627032]
[1757387669577,9.13627032,212.55,212.48,4.35803613]
[1757387669778,9.13627032,212.55,212.47,4.75627032]
[1757387669978,9.13627032,212.55,212.48,4.35824217]
[1757387670182,9.13627032,212.55,212.49,4.35956931]
[1757387670387,9.13627032,212.55,212.47,4.75627032]
[1757387670584,9.13627032,212.55,212.48,4.35924242]
[1757387670773,9.13627032,212.55,212.49,4.35924242]
[1757387671081,9.13627032,212.55,212.47,4.75627032]
[1757387671285,9.13627032,212.55,212.48,4.35915894]
[1757387671473,9.13627032,212.55,212.47,4.75627032]
[1757387671672,9.13627032,212.55,212.48,4.35901691]
[1757387671879,9.13627032,212.55,212.47,4.75627032]
[1757387672178,9.13627032,212.55,212.48,4.35922297]
[1757387672379,9.13627032,212.55,212.47,4.75627032]
[1757387672581,9.13627032,212.55,212.48,4.35864735]
[1757387672877,9.13627032,212.55,212.47,4.75627032]
[1757387673181,1.71627032,212.53,212.48,4.35904554]
[1757387673377,7.42,212.52,212.47,1.71627032]
[1757387673583,7.42,212.52,212.48,4.35911855]
[1757387673878,7.42,212.51,212.47,1.71627032]
[1757387674088,7.42,212.51,212.48,4.35910295]
[1757387674385,7.42,212.51,212.47,4.76627032]
[1757387674585,7.42,212.51,212.48,4.35896713]
[1757387674785,7.42,212.51,212.47,4.76627032]
[1757387674979,7.42,212.51,212.48,4.35896713]
[1757387675180,1.71627032,212.52,212.47,3.05]
[1757387675380,7.42,212.51,212.47,3.05]
[1757387675576,7.42,212.51,212.48,4.35891555]
[1757387675779,7.42,212.51,212.47,3.05]
[1757387675982,7.42,212.51,212.48,4.35886065]
[1757387676186,7.42,212.51,212.47,3.05]
[1757387676488,7.42,212.51,212.48,7.40877527]
[1757387676684,9.13627032,212.54,212.48,3.05]
[1757387677582,7.42,212.54,212.48,3.05]
[1757387677785,9.13627032,212.54,212.48,3.05]
[1757387680893,9.13627032,212.54,212.46,1.71627032]
[1757387681092,9.13627032,212.54,212.47,4.35749955]
[1757387681295,9.13627032,212.54,212.46,1.71627032]
[1757387682590,9.13627032,212.54,212.47,4.35767217]
[1757387682790,9.13627032,212.54,212.46,1.71627032]
[1757387682989,9.13627032,212.54,212.47,4.35851785]
[1757387683189,9.13627032,212.54,212.46,1.71627032]
[1757387683391,9.13627032,212.54,212.47,4.35857133]
[1757387683687,9.13627032,212.54,212.46,1.71627032]
[1757387683888,9.13627032,212.54,212.47,4.35809795]
[1757387684083,9.13627032,212.54,212.46,1.71627032]
[1757387684287,9.13627032,212.54,212.47,4.35820695]
[1757387684487,9.13627032,212.54,212.46,1.71627032]
[1757387684690,9.13627032,212.54,212.47,4.35800122]
[1757387684892,9.13627032,212.54,212.46,1.71627032]
[1757387685092,9.13627032,212.54,212.47,4.35800122]
[1757387685297,9.13627032,212.54,212.46,1.71627032]
[1757387685491,9.13627032,212.54,212.47,4.3582791]
[1757387685692,7.37,212.51,212.45,3.05]
[1757387685889,9.08627032,212.52,212.46,4.35880069]
[1757387686188,9.08627032,212.52,212.45,4.75627032]
[1757387686391,9.08627032,212.52,212.46,4.35892481]
[1757387686591,9.08627032,212.52,212.45,4.75627032]
[1757387686792,9.08627032,212.52,212.46,4.35927543]
[1757387687000,9.08627032,212.52,212.45,4.75627032]
[1757387687001,7.37,212.52,212.45,4.75627032]
[1757387687296,7.37,212.52,212.46,4.35938464]
[1757387687495,1.71627032,212.53,212.47,4.35984451]
[1757387687698,1.71627032,212.53,212.48,4.35984451]
[1757387687892,7.37,212.52,212.45,4.75627032]
[1757387688097,7.37,212.52,212.46,4.3602564]
[1757387688293,7.37,212.52,212.47,4.3602564]
[1757387688501,7.37,212.52,212.48,4.3602564]
[1757387688800,7.37,212.52,212.45,4.75627032]
[1757387689001,1.71627032,212.51,212.46,4.36080244]
[1757387689202,7.37,212.5,212.45,1.71627032]
[1757387689397,1.71627032,212.5,212.46,4.36166183]
[1757387689598,7.37,212.49,212.42,4.75627032]
[1757387689802,7.37,212.49,212.43,8.22973047]
[1757387690100,1.71627032,212.5,212.44,4.3624073]
[1757387690304,1.71627032,212.5,212.45,4.3624073]
[1757387690505,1.71627032,212.5,212.46,4.3624073]
[1757387690805,7.37,212.5,212.44,1.71627032]
[1757387691003,1.71627032,212.5,212.45,4.36255568]
[1757387691302,1.71627032,212.5,212.46,4.36255568]
[1757387691493,9.08627032,212.5,212.44,1.71627032]
[1757387691698,7.37,212.49,212.45,4.36323818]
[1757387691995,7.37,212.49,212.46,4.36323818]
[1757387692194,9.08627032,212.5,212.44,1.71627032]
[1757387692393,7.37,212.49,212.45,4.36366015]
[1757387692593,7.37,212.49,212.46,4.36366015]
[1757387692800,9.08627032,212.5,212.44,1.71627032]
[1757387693004,7.37,212.49,212.45,7.40242109]
[1757387693201,1.71627032,212.5,212.46,4.36242109]
[1757387693400,1.71627032,212.5,212.45,3.04]
[1757387693599,7.37,212.49,212.46,4.36243843]
[1757387693900,7.37,212.49,212.45,3.04]
[1757387694100,7.37,212.49,212.46,4.36243843]
[1757387694301,7.37,212.49,212.43,1.71627032]
[1757387694495,7.37,212.49,212.45,3.04]
[1757387694698,7.37,212.49,212.46,4.36241327]
[1757387694909,7.37,212.49,212.45,3.04]
[1757387695106,7.37,212.49,212.46,4.36240332]
[1757387695304,7.37,212.49,212.45,3.04]
[1757387695505,7.37,212.49,212.46,4.36240395]
[1757387695802,1.71627032,212.51,212.45,3.04]
[1757387696001,1.71627032,212.51,212.46,4.36239692]
[1757387696202,7.37,212.5,212.45,3.04]
[1757387696396,7.37,212.5,212.46,4.36255323]
[1757387696598,9.08627032,212.51,212.45,3.04]
[1757387696804,1.71627032,212.51,212.46,4.36255322]
[1757387697008,1.71627032,212.51,212.45,3.04]
[1757387697198,7.37,212.5,212.46,4.36255322]
[1757387697396,1.71627032,212.5,212.45,3.04]
[1757387697601,7.37,212.49,212.46,4.36270427]
[1757387697802,7.37,212.49,212.45,3.04]
[1757387698008,7.37,212.49,212.46,4.36270427]
[1757387698208,7.37,212.49,212.45,3.04]
[1757387698409,7.37,212.49,212.46,4.36269679]
[1757387698610,7.37,212.49,212.45,3.04]
[1757387698807,7.37,212.49,212.46,4.36270923]
[1757387699105,7.37,212.49,212.45,3.04]
[1757387699305,7.37,212.49,212.46,4.36271545]
[1757387699506,7.37,212.49,212.45,3.04]
[1757387699708,7.37,212.49,212.46,4.36277866]
[1757387699909,7.37,212.49,212.45,3.04]
[1757387700210,7.37,212.49,212.46,4.36276306]
[1757387700412,266.68,212.56,212.38,6.99904451]
[1757387700413,7.37,212.47,212.38,6.99904451]
[1757387700609,1.71627032,212.44,212.39,8.23110728]
[1757387700816,7.37,212.43,212.4,4.36296268]
[1757387701009,7.37,212.43,212.41,4.36296268]
[1757387701206,7.37,212.43,212.4,3.07095013]
[1757387701405,1.75110763,212.44,212.41,3.04]
[1757387701406,0.03483731,212.44,212.41,3.04]
[1757387701911,7.40483731,212.44,212.41,3.04]
[1757387703411,7.37,212.43,212.4,0.03095013]
[1757387704006,7.37,212.43,212.4,3.07095013]
[1757387704408,7.37,212.43,212.4,0.03095013]
[1757387704613,9.12110763,212.44,212.41,3.04]
[1757387705614,1.75110763,212.44,212.41,3.04]
[1757387705816,7.37,212.43,212.41,3.04]
[1757387706110,1.71627032,212.42,212.4,0.03095013]
[1757387706304,7.37,212.41,212.4,0.03095013]
[1757387708308,1.71627032,212.42,212.31,125.55712469]
[1757387708512,1.71627032,212.37,212.33,3.07]
[1757387708714,1.71627032,212.37,212.32,1.71627032]
[1757387708911,9.08627032,212.37,212.33,3.07]
[1757387709515,1.71627032,212.37,212.33,3.07]
[1757387709708,9.11847,212.37,212.31,125.55712469]
[1757387710315,9.11847,212.37,212.3,3.07]
[1757387710515,9.11847,212.37,212.31,3.84407702]
[1757387710716,9.11847,212.37,212.3,3.07]
[1757387711015,9.11847,212.37,212.31,3.84408799]
[1757387711216,9.11847,212.37,212.3,3.07]
[1757387712214,1.71627032,212.35,212.3,3.07]
[1757387712414,7.37,212.34,212.3,3.07]
[1757387712811,7.37,212.34,212.29,1.71627032]
[1757387713315,7.37,212.34,212.3,3.09]
[1757387713713,1.71627032,212.35,212.3,3.09]
[1757387713920,7.59,212.34,212.3,3.09]
[1757387714721,7.59,212.34,212.29,1.71627032]
[1757387714920,7.59,212.34,212.3,3.09]
[1757387715118,7.59,212.34,212.29,1.71627032]
[1757387715420,7.62200656,212.34,212.3,3.09]
[1757387715817,7.59,212.33,212.3,3.09]
[1757387717320,7.59,212.47,212.33,3.06]
[1757387717516,150.0,212.63,212.38,1.71627032]
[1757387717517,7.59,212.44,212.38,1.71627032]
[1757387717723,7.59,212.44,212.39,1.71627032]
[1757387717916,1.71627032,212.44,212.37,3.06]
[1757387718116,7.59,212.43,212.37,1.71627032]
[1757387718315,7.59,212.41,212.37,1.71627032]
[1757387718517,1.71627032,212.42,212.37,1.71627032]
[1757387719320,7.59,212.52,212.37,1.71627032]
[1757387719521,7.59,212.42,212.37,1.71627032]
[1757387720123,7.59,212.42,212.36,1.71627032]
[1757387720523,7.59,212.4,212.34,4.77627032]
[1757387721127,1.71627032,212.39,212.34,1.71627032]
[1757387721324,7.59,212.38,212.32,1.71627032]
[1757387722428,7.59,212.38,212.3,3.06]
[1757387722724,10.27511559,212.38,212.27,5.74511559]
[1757387724230,10.27511559,212.38,212.28,3.06]
[1757387725128,7.59,212.38,212.31,3.06]
[1757387728519,7.59,212.38,212.28,3.06]
[1757387729129,7.59,212.38,212.29,4.08000174]
[1757387729327,7.59,212.38,212.3,4.08000174]
[1757387729629,7.59,212.38,212.28,3.07]
[1757387729829,7.59,212.38,212.3,3.07]
[1757387730231,7.59,212.38,212.3,5.75511559]
[1757387731025,7.59,212.38,212.3,2.68511559]
[1757387731231,7.59,212.38,212.31,4.08046072]
[1757387731428,7.59,212.38,212.32,7.15046072]
[1757387731628,7.59,212.38,212.32,3.07]
[1757387732130,150.0,212.42,212.32,3.07]
[1757387732432,157.59,212.42,212.34,3.07]
[1757387735141,157.59,212.42,212.31,3.06]
[1757387735337,157.59,212.42,212.32,4.08380255]
[1757387735536,157.59,212.42,212.31,3.06]
[1757387735537,157.59,212.42,212.33,4.08380255]
[1757387735732,157.59,212.42,212.31,3.06]
[1757387735939,157.59,212.42,212.32,4.0848876]
[1757387736134,157.59,212.42,212.33,4.0848876]
[1757387736330,157.59,212.42,212.34,4.0848876]
[1757387736534,157.59,212.42,212.31,3.06]
[1757387736734,157.59,212.42,212.32,4.08629098]
[1757387737036,157.59,212.42,212.33,4.08629098]
[1757387737236,157.59,212.42,212.34,4.08629098]
[1757387737431,157.59,212.42,212.31,3.06]
[1757387737632,157.59,212.42,212.32,4.08809416]
[1757387737837,157.59,212.42,212.33,4.08809416]
[1757387738027,157.59,212.42,212.31,3.06]
[1757387738233,157.59,212.42,212.32,4.0877835]
[1757387738437,157.59,212.42,212.33,4.0877835]
[1757387738735,157.59,212.42,212.31,3.06]
[1757387738940,157.59,212.42,212.32,4.08854719]
[1757387739237,157.59,212.42,212.33,4.08854719]
[1757387739437,157.59,212.42,212.31,3.06]
[1757387739640,157.59,212.42,212.32,4.09115327]
[1757387739834,157.59,212.42,212.33,4.09115327]
[1757387740033,157.59,212.42,212.31,3.06]
[1757387740034,157.59,212.42,212.34,4.09115327]
[1757387740236,157.59,212.42,212.31,3.06]
[1757387740435,157.59,212.42,212.32,4.09211388]
[1757387740636,157.59,212.42,212.33,4.09211388]
[1757387740833,157.59,212.42,212.34,4.09211388]
[1757387741032,157.59,212.42,212.31,3.06]
[1757387741242,157.59,212.42,212.32,4.09233783]
[1757387741541,157.59,212.42,212.33,4.09233783]
[1757387741740,157.59,212.42,212.34,4.09233783]
[1757387741938,157.59,212.42,212.31,3.06]
[1757387742140,157.59,212.42,212.32,4.09350293]
[1757387742343,157.59,212.42,212.33,4.09350293]
[1757387742642,157.59,212.42,212.34,4.09350293]
[1757387742836,157.59,212.42,212.35,4.09350293]
[1757387743034,157.59,212.42,212.31,3.06]
[1757387743230,157.59,212.42,212.32,7.95170284]
[1757387743434,157.59,212.42,212.33,4.0942196]
[1757387743631,157.59,212.42,212.34,4.0942196]
[1757387743940,157.59,212.42,212.35,4.0942196]
[1757387744141,157.59,212.42,212.36,4.0942196]
[1757387744436,157.59,212.42,212.31,3.06]
[1757387744641,157.59,212.42,212.32,7.9593837]
[1757387744942,157.59,212.42,212.33,7.9593837]
[1757387745143,157.59,212.42,212.34,4.09816223]
[1757387745342,157.59,212.42,212.35,4.09816223]
[1757387745542,157.59,212.42,212.36,4.09816223]
[1757387745736,157.59,212.42,212.31,3.06]
[1757387745938,157.59,212.42,212.32,7.96002433]
[1757387746140,157.59,212.42,212.33,7.96002433]
[1757387746337,157.59,212.42,212.34,4.09849194]
[1757387746536,157.59,212.42,212.35,4.09849194]
[1757387746735,157.59,212.42,212.31,3.06]
[1757387746736,157.59,212.42,212.36,4.09849194]
[1757387746937,157.59,212.42,212.31,3.06]
[1757387747138,157.59,212.42,212.32,7.96464082]
[1757387747339,157.59,212.42,212.33,7.96464082]
[1757387747541,157.59,212.42,212.34,4.1008927]
[1757387747845,157.59,212.42,212.35,4.1008927]
[1757387748044,157.59,212.42,212.36,4.1008927]
[1757387748236,7.52,212.45,212.37,4.1008927]
[1757387748440,7.52,212.45,212.38,4.1008927]
[1757387748641,7.52,212.45,212.33,5.73511559]
[1757387748842,7.52,212.45,212.34,7.97260826]
[1757387749145,7.52,212.45,212.35,4.10499553]
[1757387749345,7.52,212.45,212.36,4.10499553]
[1757387749549,7.52,212.45,212.37,4.10499553]
[1757387749742,7.52,212.45,212.38,4.10499553]
[1757387749941,7.52,212.45,212.33,5.73511559]
[1757387750144,7.52,212.45,212.34,7.97653776]
[1757387750338,7.52,212.45,212.35,7.97653776]
[1757387750540,0.03315735,212.42,212.38,3.05]
[1757387750842,0.03315735,212.42,212.41,3.05]
[1757387751040,0.03315735,212.42,212.41,7.15701584]
[1757387751347,7.55315735,212.42,212.41,4.10701584]
[1757387751850,0.03315735,212.42,212.41,4.10701584]
[1757387752544,0.03315735,212.42,212.41,7.15701584]
[1757387753138,0.03315735,212.42,212.41,4.10701584]
[1757387753542,7.55315735,212.42,212.41,4.10701584]
[1757387756242,7.52,212.41,212.37,3.08420867]
[1757387756443,7.52,212.41,212.38,4.10081493]
[1757387756641,7.52,212.41,212.39,4.10081493]
[1757387756841,7.52,212.41,212.4,4.10110886]
[1757387757645,0.03315735,212.42,212.4,4.10110886]
[1757387757849,0.03315735,212.42,212.41,4.10110886]
[1757387758651,0.03315735,212.42,212.39,3.05]
[1757387758853,0.03315735,212.42,212.4,4.09960291]
[1757387759145,0.03315735,212.42,212.39,3.05]
[1757387759349,7.52,212.41,212.4,4.09458654]
[1757387760243,0.03315735,212.42,212.4,7.14458654]
[1757387760443,0.03315735,212.42,212.4,3.05]
[1757387761647,0.03315735,212.42,212.37,0.03420867]
[1757387761851,0.03315735,212.42,212.39,3.05]
[1757387762047,0.03315735,212.42,212.4,7.14573902]
[1757387762248,0.03315735,212.42,212.41,4.09573902]
[1757387762951,7.52,212.41,212.37,3.08420867]
[1757387763248,7.52,212.41,212.38,4.09584445]
[1757387763546,0.03315735,212.42,212.39,4.09584445]
[1757387763547,7.55315735,212.42,212.39,4.09584445]